[Event "Titled Tuesday Blitz May 17 Early 2022"]
[White "Harsha Bharathakoti"]
[Black "Sokolovsky, Yahli"]
[WhiteFideId "5078776"]
[BlackFideId "2820242"]
[WhiteElo "2575"]
[BlackElo "1770"]
[Result "0-1"]
[Round "10"]
[TimeControl "180+1"]
[Date "2022.05.17"]
[WhiteClock "0:00:01"]
[BlackClock "0:00:12"]

1. Nf3 {[%clk 0:03:00]}  d6 {[%clk 0:02:59]} 2. d4 {[%clk 0:02:59]}  g6 {[%clk 0:02:59]} 3. e4 {[%clk 0:02:59]}  Bg7 {[%clk 0:02:59]} 4. Nc3 {[%clk 0:02:59]}  a6 {[%clk 0:03:00]} 5. Be2 {[%clk 0:02:58]}  b5 {[%clk 0:03:00]} 6. O-O {[%clk 0:02:57]}  Bb7 {[%clk 0:03:00]} 7. a4 {[%clk 0:02:47]}  b4 {[%clk 0:02:59]} 8. Nd5 {[%clk 0:02:45]}  a5 {[%clk 0:02:50]} 9. Re1 {[%clk 0:02:35]}  e6 {[%clk 0:02:49]} 10. Nf4 {[%clk 0:02:28]}  Ne7 {[%clk 0:02:31]} 11. Bb5+ {[%clk 0:02:16]}  Nd7 {[%clk 0:02:26]} 12. d5 {[%clk 0:02:05]}  exd5 {[%clk 0:02:16]} 13. exd5 {[%clk 0:01:55]}  O-O {[%clk 0:02:16]} 14. Be3 {[%clk 0:01:20]}  Nf6 {[%clk 0:01:50]} 15. Bc4 {[%clk 0:01:15]}  h6 {[%clk 0:01:36]} 16. h4 {[%clk 0:00:48]}  Nf5 {[%clk 0:01:36]} 17. Qd3 {[%clk 0:00:33]}  Ng4 {[%clk 0:01:30]} 18. Bc1 {[%clk 0:00:27]}  Nxh4 {[%clk 0:01:25]} 19. Nd4 {[%clk 0:00:08]}  Ne5 {[%clk 0:01:06]} 20. Qb3 {[%clk 0:00:09]}  Qf6 {[%clk 0:00:53]} 21. Bf1 {[%clk 0:00:07]}  Ba6 {[%clk 0:00:37]} 22. Be3 {[%clk 0:00:07]}  Bxf1 {[%clk 0:00:37]} 23. Rxf1 {[%clk 0:00:08]}  Ng4 {[%clk 0:00:36]} 24. Rad1 {[%clk 0:00:04]}  Rae8 {[%clk 0:00:34]} 25. Bc1 {[%clk 0:00:02]}  Ne5 {[%clk 0:00:26]} 26. Qh3 {[%clk 0:00:02]}  Nc4 {[%clk 0:00:20]} 27. b3 {[%clk 0:00:02]}  Na3 {[%clk 0:00:20]} 28. Bb2 {[%clk 0:00:01]}  Qxf4 {[%clk 0:00:20]} 29. Bc1 {[%clk 0:00:01]}  Qf6 {[%clk 0:00:18]} 30. Nc6 {[%clk 0:00:02]}  Nxc2 {[%clk 0:00:16]} 31. Nxa5 {[%clk 0:00:02]}  Nd4 {[%clk 0:00:16]} 32. Rd3 {[%clk 0:00:01]}  Ne2+ {[%clk 0:00:16]} 33. Kh1 {[%clk 0:00:02]}  Nf5 {[%clk 0:00:16]} 34. Bd2 {[%clk 0:00:01]}  Re4 {[%clk 0:00:12]} 0-1


[Site "https://www.chess.com"]

[Event "Titled Tuesday Blitz May 17 Early 2022"]
[White "Hnydiuk, Aleksander"]
[Black "Petrovskyi, Vadym"]
[WhiteFideId "1109057"]
[BlackFideId "14165210"]
[WhiteElo "2374"]
[BlackElo "2400"]
[Result "0-1"]
[Round "10"]
[TimeControl "180+1"]
[Date "2022.05.17"]
[WhiteClock "0:00:21"]
[BlackClock "0:02:32"]

1. e4 {[%clk 0:03:00]}  c5 {[%clk 0:02:56]} 2. Nf3 {[%clk 0:03:00]}  d6 {[%clk 0:02:55]} 3. d4 {[%clk 0:03:00]}  cxd4 {[%clk 0:02:55]} 4. Nxd4 {[%clk 0:03:00]}  Nf6 {[%clk 0:02:56]} 5. Nc3 {[%clk 0:03:00]}  a6 {[%clk 0:02:55]} 6. Be3 {[%clk 0:02:59]}  e6 {[%clk 0:02:55]} 7. Qd2 {[%clk 0:02:56]}  b5 {[%clk 0:02:55]} 8. a3 {[%clk 0:02:55]}  Bb7 {[%clk 0:02:55]} 9. f3 {[%clk 0:02:55]}  Nbd7 {[%clk 0:02:55]} 10. O-O-O {[%clk 0:02:55]}  Nb6 {[%clk 0:02:55]} 11. g4 {[%clk 0:02:54]}  Nfd7 {[%clk 0:02:55]} 12. f4 {[%clk 0:02:26]}  Rc8 {[%clk 0:02:54]} 13. Kb1 {[%clk 0:02:25]}  d5 {[%clk 0:02:48]} 14. e5 {[%clk 0:02:05]}  b4 {[%clk 0:02:46]} 15. axb4 {[%clk 0:02:00]}  Bxb4 {[%clk 0:02:46]} 16. Nde2 {[%clk 0:01:02]}  Nc4 {[%clk 0:02:42]} 17. Qd3 {[%clk 0:00:58]}  d4 {[%clk 0:02:40]} 18. Ne4 {[%clk 0:00:30]}  Nxe3 {[%clk 0:02:34]} 19. Qxd4 {[%clk 0:00:21]}  Nxc2 {[%clk 0:02:32]} 0-1


[Site "https://www.chess.com"]

[Event "Titled Tuesday Blitz May 17 Early 2022"]
[White "Klekowski, Maciej"]
[Black "Sjugirov, Sanan"]
[WhiteFideId "1132717"]
[BlackFideId "4189302"]
[WhiteElo "2476"]
[BlackElo "2602"]
[Result "1-0"]
[Round "10"]
[TimeControl "180+1"]
[Date "2022.05.17"]
[WhiteClock "0:01:31"]
[BlackClock "0:01:37"]

1. c4 {[%clk 0:03:00]}  e5 {[%clk 0:02:57]} 2. g3 {[%clk 0:02:59]}  g6 {[%clk 0:02:56]} 3. Nc3 {[%clk 0:02:59]}  Bg7 {[%clk 0:02:56]} 4. Bg2 {[%clk 0:02:59]}  Nc6 {[%clk 0:02:57]} 5. d3 {[%clk 0:03:00]}  d6 {[%clk 0:02:58]} 6. h4 {[%clk 0:03:00]}  h6 {[%clk 0:02:54]} 7. Rb1 {[%clk 0:03:00]}  a5 {[%clk 0:02:52]} 8. e3 {[%clk 0:02:50]}  Be6 {[%clk 0:02:50]} 9. Nge2 {[%clk 0:02:51]}  Qd7 {[%clk 0:02:48]} 10. a3 {[%clk 0:02:48]}  Nge7 {[%clk 0:02:44]} 11. e4 {[%clk 0:02:43]}  O-O {[%clk 0:02:43]} 12. Be3 {[%clk 0:02:42]}  Nd4 {[%clk 0:02:39]} 13. Qd2 {[%clk 0:02:38]}  Kh7 {[%clk 0:02:39]} 14. Bxd4 {[%clk 0:02:38]}  exd4 {[%clk 0:02:39]} 15. Nd5 {[%clk 0:02:33]}  Rae8 {[%clk 0:02:24]} 16. Qxa5 {[%clk 0:02:27]}  c6 {[%clk 0:02:20]} 17. Ndf4 {[%clk 0:02:24]}  c5 {[%clk 0:02:08]} 18. O-O {[%clk 0:02:05]}  Nc6 {[%clk 0:02:08]} 19. Qd2 {[%clk 0:02:03]}  h5 {[%clk 0:02:03]} 20. Nxe6 {[%clk 0:02:00]}  Rxe6 {[%clk 0:01:59]} 21. b4 {[%clk 0:01:59]}  Bh6 {[%clk 0:01:59]} 22. Qc2 {[%clk 0:01:53]}  Re7 {[%clk 0:01:56]} 23. bxc5 {[%clk 0:01:49]}  dxc5 {[%clk 0:01:57]} 24. f4 {[%clk 0:01:49]}  Ra8 {[%clk 0:01:50]} 25. Rb3 {[%clk 0:01:45]}  Qc7 {[%clk 0:01:47]} 26. Rfb1 {[%clk 0:01:43]}  Ra6 {[%clk 0:01:46]} 27. Kh2 {[%clk 0:01:39]}  b6 {[%clk 0:01:44]} 28. Qb2 {[%clk 0:01:34]}  f5 {[%clk 0:01:37]} 29. Rxb6 {[%clk 0:01:31]} 1-0


[Site "https://www.chess.com"]

[Event "Titled Tuesday Blitz May 17 Early 2022"]
[White "Nakamura, Hikaru"]
[Black "Salem, A.R. Saleh"]
[WhiteFideId "2016192"]
[BlackFideId "9301348"]
[WhiteElo "2850"]
[BlackElo "2679"]
[Result "0-1"]
[Round "10"]
[TimeControl "180+1"]
[Date "2022.05.17"]
[WhiteClock "0:00:08"]
[BlackClock "0:00:09"]

1. Nf3 {[%clk 0:03:00]}  d5 {[%clk 0:03:00]} 2. e3 {[%clk 0:02:58]}  c5 {[%clk 0:03:00]} 3. b3 {[%clk 0:02:56]}  a6 {[%clk 0:03:00]} 4. Bb2 {[%clk 0:02:56]}  Nc6 {[%clk 0:03:00]} 5. d4 {[%clk 0:02:56]}  Nf6 {[%clk 0:03:01]} 6. dxc5 {[%clk 0:02:56]}  e6 {[%clk 0:03:01]} 7. c4 {[%clk 0:02:56]}  Bxc5 {[%clk 0:03:02]} 8. cxd5 {[%clk 0:02:56]}  exd5 {[%clk 0:03:02]} 9. Be2 {[%clk 0:02:56]}  O-O {[%clk 0:03:03]} 10. O-O {[%clk 0:02:57]}  Qe7 {[%clk 0:03:03]} 11. Nc3 {[%clk 0:02:44]}  Rd8 {[%clk 0:03:04]} 12. Na4 {[%clk 0:02:40]}  Ba7 {[%clk 0:03:04]} 13. Qc1 {[%clk 0:02:40]}  d4 {[%clk 0:02:55]} 14. Ba3 {[%clk 0:02:36]}  Qe8 {[%clk 0:02:38]} 15. Bc5 {[%clk 0:02:34]}  Bxc5 {[%clk 0:02:18]} 16. Nxc5 {[%clk 0:02:28]}  b6 {[%clk 0:02:11]} 17. Nd3 {[%clk 0:02:27]}  Bf5 {[%clk 0:02:06]} 18. Rd1 {[%clk 0:02:22]}  Rac8 {[%clk 0:02:05]} 19. Qd2 {[%clk 0:02:11]}  Ne4 {[%clk 0:02:05]} 20. Qe1 {[%clk 0:02:11]}  Nc3 {[%clk 0:02:05]} 21. Rdc1 {[%clk 0:02:05]}  Nxe2+ {[%clk 0:02:06]} 22. Qxe2 {[%clk 0:02:06]}  dxe3 {[%clk 0:02:06]} 23. Nf4 {[%clk 0:02:02]}  exf2+ {[%clk 0:02:02]} 24. Qxf2 {[%clk 0:02:03]}  b5 {[%clk 0:01:20]} 25. Re1 {[%clk 0:01:35]}  Qd7 {[%clk 0:01:15]} 26. h3 {[%clk 0:01:36]}  h6 {[%clk 0:01:15]} 27. Rac1 {[%clk 0:01:30]}  Nb4 {[%clk 0:01:03]} 28. Ne5 {[%clk 0:01:24]}  Qb7 {[%clk 0:00:55]} 29. Nh5 {[%clk 0:01:05]}  Rxc1 {[%clk 0:00:43]} 30. Rxc1 {[%clk 0:01:05]}  Qe4 {[%clk 0:00:26]} 31. Nxf7 {[%clk 0:00:44]}  Nd3 {[%clk 0:00:14]} 32. Nxh6+ {[%clk 0:00:27]}  Kh7 {[%clk 0:00:12]} 33. Qg3 {[%clk 0:00:20]}  Qd4+ {[%clk 0:00:12]} 34. Kh2 {[%clk 0:00:17]}  Kxh6 {[%clk 0:00:13]} 35. Rf1 {[%clk 0:00:13]}  g6 {[%clk 0:00:11]} 36. Nf4 {[%clk 0:00:13]}  Nxf4 {[%clk 0:00:11]} 37. Rxf4 {[%clk 0:00:14]}  Qd6 {[%clk 0:00:10]} 38. Qe3 {[%clk 0:00:13]}  Kh7 {[%clk 0:00:09]} 39. Kh1 {[%clk 0:00:13]}  Qd1+ {[%clk 0:00:08]} 40. Kh2 {[%clk 0:00:13]}  Qd6 {[%clk 0:00:09]} 41. Kh1 {[%clk 0:00:14]}  Kg7 {[%clk 0:00:09]} 42. Qc3+ {[%clk 0:00:12]}  Kg8 {[%clk 0:00:08]} 43. Rf3 {[%clk 0:00:09]}  Re8 {[%clk 0:00:08]} 44. Qc1 {[%clk 0:00:07]}  Qe5 {[%clk 0:00:08]} 45. Rf1 {[%clk 0:00:07]}  b4 {[%clk 0:00:08]} 46. Qc6 {[%clk 0:00:06]}  a5 {[%clk 0:00:07]} 47. Rd1 {[%clk 0:00:04]}  Be4 {[%clk 0:00:07]} 48. Qd7 {[%clk 0:00:03]}  Re7 {[%clk 0:00:07]} 49. Qc8+ {[%clk 0:00:03]}  Kg7 {[%clk 0:00:08]} 50. Rd8 {[%clk 0:00:04]}  Kh7 {[%clk 0:00:06]} 51. Qc1 {[%clk 0:00:02]}  Qf5 {[%clk 0:00:05]} 52. Kh2 {[%clk 0:00:01]}  Qe5+ {[%clk 0:00:05]} 53. Kg1 {[%clk 0:00:01]}  Qc7 {[%clk 0:00:05]} 54. Qd2 {[%clk 0:00:01]}  Qc5+ {[%clk 0:00:05]} 55. Kh2 {[%clk 0:00:02]}  Qe5+ {[%clk 0:00:05]} 56. Kh1 {[%clk 0:00:02]}  Bf5 {[%clk 0:00:06]} 57. Kg1 {[%clk 0:00:03]}  Qe1+ {[%clk 0:00:06]} 58. Kh2 {[%clk 0:00:03]}  Qxd2 {[%clk 0:00:06]} 59. Rxd2 {[%clk 0:00:04]}  Rc7 {[%clk 0:00:06]} 60. Rd5 {[%clk 0:00:03]}  Ra7 {[%clk 0:00:07]} 61. g4 {[%clk 0:00:04]}  Be6 {[%clk 0:00:07]} 62. Re5 {[%clk 0:00:04]}  Bg8 {[%clk 0:00:08]} 63. Kg3 {[%clk 0:00:04]}  a4 {[%clk 0:00:08]} 64. Rb5 {[%clk 0:00:05]}  axb3 {[%clk 0:00:09]} 65. axb3 {[%clk 0:00:06]}  Ra3 {[%clk 0:00:06]} 66. h4 {[%clk 0:00:06]}  Rxb3+ {[%clk 0:00:07]} 67. Kf4 {[%clk 0:00:07]}  Rb1 {[%clk 0:00:07]} 68. Kg5 {[%clk 0:00:07]}  Bf7 {[%clk 0:00:07]} 69. Kf6 {[%clk 0:00:07]}  Rf1+ {[%clk 0:00:07]} 70. Kg5 {[%clk 0:00:07]}  b3 {[%clk 0:00:07]} 71. Rb7 {[%clk 0:00:08]}  Kg7 {[%clk 0:00:07]} 72. h5 {[%clk 0:00:09]}  gxh5 {[%clk 0:00:08]} 73. gxh5 {[%clk 0:00:10]}  Rg1+ {[%clk 0:00:09]} 74. Kf4 {[%clk 0:00:10]}  Kh6 {[%clk 0:00:09]} 75. Ke3 {[%clk 0:00:08]}  Rf1 {[%clk 0:00:09]} 76. Ke2 {[%clk 0:00:08]}  Rf5 {[%clk 0:00:09]} 77. Ke3 {[%clk 0:00:08]}  Kxh5 {[%clk 0:00:09]} 78. Ke4 {[%clk 0:00:08]}  Bd5+ {[%clk 0:00:09]} 0-1


[Site "https://www.chess.com"]

[Event "Titled Tuesday Blitz May 17 Early 2022"]
[White "Piesik, Piotr"]
[Black "Visakh N R"]
[WhiteFideId "1136194"]
[BlackFideId "25012223"]
[WhiteElo "2190"]
[BlackElo "2448"]
[Result "1/2-1/2"]
[Round "10"]
[TimeControl "180+1"]
[Date "2022.05.17"]
[WhiteClock "0:00:07"]
[BlackClock "0:00:25"]

1. Nf3 {[%clk 0:03:00]}  d5 {[%clk 0:02:59]} 2. g3 {[%clk 0:02:58]}  Nd7 {[%clk 0:03:00]} 3. Bg2 {[%clk 0:02:57]}  e5 {[%clk 0:03:00]} 4. O-O {[%clk 0:02:58]}  Ngf6 {[%clk 0:02:59]} 5. d3 {[%clk 0:02:58]}  Bc5 {[%clk 0:02:59]} 6. c3 {[%clk 0:02:57]}  O-O {[%clk 0:02:59]} 7. Qc2 {[%clk 0:02:57]}  a5 {[%clk 0:02:59]} 8. e4 {[%clk 0:02:54]}  dxe4 {[%clk 0:02:58]} 9. dxe4 {[%clk 0:02:54]}  b6 {[%clk 0:02:59]} 10. h3 {[%clk 0:02:53]}  Qe7 {[%clk 0:02:57]} 11. Bg5 {[%clk 0:02:52]}  h6 {[%clk 0:02:56]} 12. Bxf6 {[%clk 0:02:52]}  Nxf6 {[%clk 0:02:57]} 13. Nbd2 {[%clk 0:02:52]}  Rd8 {[%clk 0:02:57]} 14. Rfd1 {[%clk 0:02:51]}  Ba6 {[%clk 0:02:55]} 15. Nb3 {[%clk 0:02:50]}  Bd6 {[%clk 0:02:54]} 16. Bf1 {[%clk 0:02:49]}  Bb7 {[%clk 0:02:52]} 17. Nbd2 {[%clk 0:02:48]}  a4 {[%clk 0:02:49]} 18. b4 {[%clk 0:02:45]}  axb3 {[%clk 0:02:45]} 19. axb3 {[%clk 0:02:46]}  Qe6 {[%clk 0:02:39]} 20. Kg2 {[%clk 0:02:42]}  Qe8 {[%clk 0:02:30]} 21. Bd3 {[%clk 0:02:36]}  Nd7 {[%clk 0:02:27]} 22. b4 {[%clk 0:02:34]}  Nf8 {[%clk 0:02:23]} 23. Nc4 {[%clk 0:02:33]}  Ng6 {[%clk 0:02:21]} 24. Nxd6 {[%clk 0:02:28]}  Rxd6 {[%clk 0:02:20]} 25. Bc4 {[%clk 0:02:11]}  Rxa1 {[%clk 0:02:06]} 26. Rxa1 {[%clk 0:02:11]}  Kh7 {[%clk 0:02:07]} 27. Nd2 {[%clk 0:02:05]}  f5 {[%clk 0:01:59]} 28. Kg1 {[%clk 0:02:03]}  fxe4 {[%clk 0:01:56]} 29. Re1 {[%clk 0:02:02]}  Qc6 {[%clk 0:01:53]} 30. b5 {[%clk 0:02:00]}  Qc5 {[%clk 0:01:52]} 31. Bf1 {[%clk 0:01:53]}  Rf6 {[%clk 0:01:04]} 32. Re3 {[%clk 0:01:44]}  h5 {[%clk 0:00:58]} 33. Nxe4 {[%clk 0:01:37]}  Bxe4 {[%clk 0:00:57]} 34. Qxe4 {[%clk 0:01:38]}  h4 {[%clk 0:00:54]} 35. Kg2 {[%clk 0:00:56]}  hxg3 {[%clk 0:00:51]} 36. fxg3 {[%clk 0:00:57]}  Kh8 {[%clk 0:00:40]} 37. Bc4 {[%clk 0:00:45]}  Nf4+ {[%clk 0:00:25]} 38. gxf4 {[%clk 0:00:37]}  Rxf4 {[%clk 0:00:26]} 39. Qa8+ {[%clk 0:00:37]}  Rf8 {[%clk 0:00:27]} 40. Qe4 {[%clk 0:00:17]}  Rf4 {[%clk 0:00:25]} 41. Qa8+ {[%clk 0:00:07]}  Rf8 {[%clk 0:00:25]} 42. Qe4 {[%clk 0:00:07]}  Rf4 {[%clk 0:00:25]} 1/2-1/2


[Site "https://www.chess.com"]

[Event "Titled Tuesday Blitz May 17 Early 2022"]
[White "Rostovtsev, Dmitry"]
[Black "Sargsyan, Anna M."]
[WhiteFideId "34278320"]
[BlackFideId "13308130"]
[WhiteElo "2274"]
[BlackElo "2271"]
[Result "0-1"]
[Round "10"]
[TimeControl "180+1"]
[Date "2022.05.17"]
[WhiteClock "0:00:03"]
[BlackClock "0:00:22"]

1. e4 {[%clk 0:03:00]}  e5 {[%clk 0:01:09]} 2. Nf3 {[%clk 0:02:58]}  Nc6 {[%clk 0:01:10]} 3. Bb5 {[%clk 0:02:58]}  a6 {[%clk 0:01:10]} 4. Ba4 {[%clk 0:02:59]}  Nf6 {[%clk 0:01:11]} 5. O-O {[%clk 0:02:59]}  Nxe4 {[%clk 0:01:10]} 6. d4 {[%clk 0:02:58]}  b5 {[%clk 0:01:09]} 7. Bb3 {[%clk 0:02:59]}  d5 {[%clk 0:01:10]} 8. dxe5 {[%clk 0:02:59]}  Be6 {[%clk 0:01:11]} 9. Nbd2 {[%clk 0:02:59]}  Be7 {[%clk 0:01:11]} 10. c3 {[%clk 0:02:43]}  O-O {[%clk 0:01:10]} 11. Bc2 {[%clk 0:02:43]}  f5 {[%clk 0:01:11]} 12. exf6 {[%clk 0:02:42]}  Nxf6 {[%clk 0:01:10]} 13. h3 {[%clk 0:02:41]}  Bc5 {[%clk 0:01:10]} 14. Nb3 {[%clk 0:02:41]}  Bb6 {[%clk 0:01:10]} 15. Nbd4 {[%clk 0:02:40]}  Nxd4 {[%clk 0:01:09]} 16. Nxd4 {[%clk 0:02:38]}  Bf7 {[%clk 0:01:09]} 17. Bg5 {[%clk 0:02:31]}  c5 {[%clk 0:01:07]} 18. Nf5 {[%clk 0:02:31]}  Bg6 {[%clk 0:01:04]} 19. Re1 {[%clk 0:02:28]}  Kh8 {[%clk 0:01:01]} 20. Ne7 {[%clk 0:02:23]}  Bxc2 {[%clk 0:00:59]} 21. Qxc2 {[%clk 0:02:24]}  Qd6 {[%clk 0:00:53]} 22. Nf5 {[%clk 0:02:18]}  Qc6 {[%clk 0:00:53]} 23. Re7 {[%clk 0:02:12]}  Ra7 {[%clk 0:00:52]} 24. Bxf6 {[%clk 0:02:02]}  Qxf6 {[%clk 0:00:50]} 25. Rae1 {[%clk 0:01:39]}  h6 {[%clk 0:00:30]} 26. Rxa7 {[%clk 0:01:14]}  Bxa7 {[%clk 0:00:31]} 27. Ne7 {[%clk 0:01:15]}  Rd8 {[%clk 0:00:32]} 28. Ng6+ {[%clk 0:00:56]}  Kg8 {[%clk 0:00:31]} 29. Ne7+ {[%clk 0:00:54]}  Kh8 {[%clk 0:00:31]} 30. Qe2 {[%clk 0:00:49]}  c4 {[%clk 0:00:26]} 31. g3 {[%clk 0:00:29]}  Bc5 {[%clk 0:00:25]} 32. Kg2 {[%clk 0:00:27]}  Rd7 {[%clk 0:00:20]} 33. Nc8 {[%clk 0:00:14]}  Kh7 {[%clk 0:00:21]} 34. Qc2+ {[%clk 0:00:13]}  Qg6 {[%clk 0:00:20]} 35. Qxg6+ {[%clk 0:00:13]}  Kxg6 {[%clk 0:00:21]} 36. Re6+ {[%clk 0:00:14]}  Kh7 {[%clk 0:00:21]} 37. Rxa6 {[%clk 0:00:14]}  Rc7 {[%clk 0:00:21]} 38. Ra8 {[%clk 0:00:03]}  d4 {[%clk 0:00:21]} 39. cxd4 {[%clk 0:00:02]}  Bxd4 {[%clk 0:00:22]} 40. Rb8 {[%clk 0:00:02]}  Bxb2 {[%clk 0:00:21]} 41. Rxb5 {[%clk 0:00:02]}  Bf6 {[%clk 0:00:21]} 42. Nd6 {[%clk 0:00:02]}  c3 {[%clk 0:00:22]} 43. Ne4 {[%clk 0:00:03]}  c2 {[%clk 0:00:22]} 0-1


[Site "https://www.chess.com"]

[Event "Titled Tuesday Blitz May 17 Early 2022"]
[White "Sadhwani, Raunak"]
[Black "Ohanyan, Emin"]
[WhiteFideId "35093487"]
[BlackFideId "13312022"]
[WhiteElo "2616"]
[BlackElo "1927"]
[Result "1-0"]
[Round "10"]
[TimeControl "180+1"]
[Date "2022.05.17"]
[WhiteClock "0:00:08"]
[BlackClock "0:00:04"]

1. e4 {[%clk 0:03:00]}  e5 {[%clk 0:02:59]} 2. Nf3 {[%clk 0:03:01]}  Nc6 {[%clk 0:03:00]} 3. Bc4 {[%clk 0:03:02]}  Nf6 {[%clk 0:03:00]} 4. d3 {[%clk 0:03:01]}  Bc5 {[%clk 0:02:56]} 5. O-O {[%clk 0:03:02]}  O-O {[%clk 0:02:55]} 6. c3 {[%clk 0:02:59]}  d5 {[%clk 0:02:55]} 7. exd5 {[%clk 0:02:59]}  Nxd5 {[%clk 0:02:56]} 8. h3 {[%clk 0:02:56]}  Nb6 {[%clk 0:02:24]} 9. Bb3 {[%clk 0:02:37]}  Bf5 {[%clk 0:02:23]} 10. Bc2 {[%clk 0:02:38]}  a5 {[%clk 0:02:05]} 11. Qe2 {[%clk 0:02:37]}  Re8 {[%clk 0:02:03]} 12. Nbd2 {[%clk 0:02:37]}  Nd5 {[%clk 0:01:59]} 13. Ne4 {[%clk 0:02:37]}  Bb6 {[%clk 0:01:59]} 14. Ba4 {[%clk 0:02:06]}  Bd7 {[%clk 0:01:21]} 15. Bb3 {[%clk 0:01:53]}  Bf5 {[%clk 0:00:59]} 16. Bg5 {[%clk 0:01:42]}  Qd7 {[%clk 0:00:52]} 17. Nh4 {[%clk 0:01:29]}  Be6 {[%clk 0:00:47]} 18. Ba4 {[%clk 0:01:24]}  f6 {[%clk 0:00:39]} 19. Bd2 {[%clk 0:01:24]}  Qf7 {[%clk 0:00:38]} 20. Qf3 {[%clk 0:01:06]}  Nce7 {[%clk 0:00:36]} 21. Bxe8 {[%clk 0:01:04]}  Rxe8 {[%clk 0:00:34]} 22. Rae1 {[%clk 0:00:47]}  h6 {[%clk 0:00:24]} 23. a3 {[%clk 0:00:29]}  g5 {[%clk 0:00:23]} 24. c4 {[%clk 0:00:26]}  Nf4 {[%clk 0:00:17]} 25. Bxf4 {[%clk 0:00:23]}  exf4 {[%clk 0:00:16]} 26. g4 {[%clk 0:00:22]}  gxh4 {[%clk 0:00:13]} 27. Qxf4 {[%clk 0:00:22]}  Bd4 {[%clk 0:00:10]} 28. Nd6 {[%clk 0:00:18]}  cxd6 {[%clk 0:00:06]} 29. Qxd4 {[%clk 0:00:18]}  Nc6 {[%clk 0:00:06]} 30. Qc3 {[%clk 0:00:18]}  Ne5 {[%clk 0:00:06]} 31. f4 {[%clk 0:00:18]}  Nc6 {[%clk 0:00:05]} 32. f5 {[%clk 0:00:17]}  Bd7 {[%clk 0:00:06]} 33. Rxe8+ {[%clk 0:00:18]}  Qxe8 {[%clk 0:00:06]} 34. Re1 {[%clk 0:00:15]}  Ne5 {[%clk 0:00:06]} 35. Kf2 {[%clk 0:00:11]}  Qb8 {[%clk 0:00:03]} 36. d4 {[%clk 0:00:11]}  Qa7 {[%clk 0:00:04]} 37. Kf1 {[%clk 0:00:10]}  Nf7 {[%clk 0:00:03]} 38. Re7 {[%clk 0:00:07]}  b5 {[%clk 0:00:02]} 39. c5 {[%clk 0:00:06]}  Qb7 {[%clk 0:00:02]} 40. d5 {[%clk 0:00:04]}  Qxd5 {[%clk 0:00:02]} 41. Rxd7 {[%clk 0:00:04]}  Qh1+ {[%clk 0:00:02]} 42. Ke2 {[%clk 0:00:05]}  Qg2+ {[%clk 0:00:02]} 43. Kd1 {[%clk 0:00:05]}  Qd5+ {[%clk 0:00:01]} 44. Kc1 {[%clk 0:00:05]}  Qh1+ {[%clk 0:00:01]} 45. Kc2 {[%clk 0:00:05]}  Qe4+ {[%clk 0:00:02]} 46. Qd3 {[%clk 0:00:06]}  Qg2+ {[%clk 0:00:02]} 47. Kb1 {[%clk 0:00:06]}  Ne5 {[%clk 0:00:02]} 48. Rd8+ {[%clk 0:00:06]}  Kf7 {[%clk 0:00:02]} 49. Qb3+ {[%clk 0:00:06]}  Nc4 {[%clk 0:00:03]} 50. Rxd6 {[%clk 0:00:05]}  a4 {[%clk 0:00:03]} 51. Qxb5 {[%clk 0:00:04]}  Nd2+ {[%clk 0:00:01]} 52. Rxd2 {[%clk 0:00:04]}  Qxd2 {[%clk 0:00:02]} 53. Qxa4 {[%clk 0:00:04]}  Qe1+ {[%clk 0:00:02]} 54. Ka2 {[%clk 0:00:05]}  Qf1 {[%clk 0:00:02]} 55. Qb3+ {[%clk 0:00:05]}  Ke7 {[%clk 0:00:02]} 56. c6 {[%clk 0:00:06]}  Kd6 {[%clk 0:00:02]} 57. Qe6+ {[%clk 0:00:05]}  Kc7 {[%clk 0:00:03]} 58. Qd7+ {[%clk 0:00:06]}  Kb6 {[%clk 0:00:03]} 59. Qb7+ {[%clk 0:00:07]}  Kc5 {[%clk 0:00:04]} 60. c7 {[%clk 0:00:07]}  Qc4+ {[%clk 0:00:04]} 61. Qb3 {[%clk 0:00:08]} 1-0


[Site "https://www.chess.com"]

[Event "Titled Tuesday Blitz May 17 Early 2022"]
[White "Sarana, Alexey"]
[Black "Paravyan, David"]
[WhiteFideId "24133795"]
[BlackFideId "4194985"]
[WhiteElo "2666"]
[BlackElo "2569"]
[Result "1/2-1/2"]
[Round "10"]
[TimeControl "180+1"]
[Date "2022.05.17"]
[WhiteClock "0:00:46"]
[BlackClock "0:01:02"]

1. d4 {[%clk 0:02:59]}  Nf6 {[%clk 0:03:00]} 2. c4 {[%clk 0:03:00]}  g6 {[%clk 0:03:00]} 3. Nc3 {[%clk 0:03:01]}  d5 {[%clk 0:03:01]} 4. Nf3 {[%clk 0:03:02]}  Bg7 {[%clk 0:03:01]} 5. h4 {[%clk 0:03:02]}  O-O {[%clk 0:02:58]} 6. cxd5 {[%clk 0:03:02]}  Nxd5 {[%clk 0:02:59]} 7. h5 {[%clk 0:03:03]}  c5 {[%clk 0:03:00]} 8. hxg6 {[%clk 0:03:03]}  hxg6 {[%clk 0:03:01]} 9. Bh6 {[%clk 0:03:02]}  Nxc3 {[%clk 0:02:58]} 10. bxc3 {[%clk 0:03:03]}  Bxh6 {[%clk 0:02:55]} 11. Rxh6 {[%clk 0:03:03]}  Kg7 {[%clk 0:02:55]} 12. Qd2 {[%clk 0:03:04]}  cxd4 {[%clk 0:02:55]} 13. cxd4 {[%clk 0:02:58]}  Nc6 {[%clk 0:02:48]} 14. d5 {[%clk 0:02:52]}  Qa5 {[%clk 0:02:43]} 15. Rh4 {[%clk 0:02:28]}  Rd8 {[%clk 0:02:42]} 16. Qxa5 {[%clk 0:02:10]}  Nxa5 {[%clk 0:02:43]} 17. Rd1 {[%clk 0:02:09]}  e6 {[%clk 0:02:30]} 18. d6 {[%clk 0:01:56]}  f6 {[%clk 0:02:27]} 19. Nd4 {[%clk 0:01:51]}  Bd7 {[%clk 0:02:22]} 20. e3 {[%clk 0:01:47]}  Rac8 {[%clk 0:02:18]} 21. Bb5 {[%clk 0:01:45]}  e5 {[%clk 0:01:39]} 22. Bxd7 {[%clk 0:01:37]}  Rxd7 {[%clk 0:01:39]} 23. Ne6+ {[%clk 0:01:37]}  Kg8 {[%clk 0:01:40]} 24. Nc7 {[%clk 0:01:08]}  Rcd8 {[%clk 0:01:24]} 25. Ne6 {[%clk 0:00:57]}  Rc8 {[%clk 0:01:19]} 26. Nc7 {[%clk 0:00:46]}  Rcd8 {[%clk 0:01:02]} 27. Ne6 {[%clk 0:00:46]}  Rc8 {[%clk 0:01:02]} 1/2-1/2


[Site "https://www.chess.com"]